bitfinex/quotes_BTCUSD_20250225
["timestamp","ask_amount","ask_price","bid_price","bid_amount"]
[1740467654844,1.7291,91120.0,91114.0,0.34177114]
[1740467655054,1.7291,91126.0,91119.0,0.35129898]
[1740467655254,1.7291,91125.0,91119.0,0.32309898]
[1740467655485,1.7291,91124.0,91119.0,0.31019898]
[1740467655832,1.7291,91123.0,91119.0,0.28989898]
[1740467656242,1.7291,91122.0,91104.0,0.34869898]
[1740467656458,1.195,91121.0,91104.0,0.34869898]
[1740467656630,0.3279,91120.0,91112.0,0.02]
[1740467656770,0.2498,91120.0,91104.0,0.34869898]
[1740467657196,0.2026,91120.0,91119.0,0.35129898]
[1740467657398,0.2026,91120.0,91119.0,0.28726084]
[1740467657600,0.2026,91120.0,91119.0,0.28526084]
[1740467657807,0.00213116,91135.0,91123.0,0.02]
[1740467658007,0.00213116,91135.0,91134.0,0.35129898]
[1740467658723,0.00213116,91135.0,91134.0,0.35619898]
[1740467658971,0.00213116,91135.0,91134.0,0.35249898]
[1740467659143,0.00213116,91135.0,91134.0,0.33249898]
[1740467659346,0.00213116,91135.0,91134.0,0.35249898]
[1740467659549,0.00213116,91135.0,91134.0,0.33249898]
[1740467659550,0.20473116,91135.0,91134.0,0.33249898]
[1740467659782,0.20473116,91135.0,91134.0,0.3196995]
[1740467659942,0.20473116,91135.0,91134.0,0.3180995]
[1740467660139,0.20473116,91135.0,91119.0,0.24136084]
[1740467660341,0.20473116,91135.0,91129.0,0.35129898]
[1740467660574,0.20473116,91135.0,91129.0,0.29942893]
[1740467660775,0.20473116,91135.0,91129.0,0.26372893]
[1740467661212,0.20473116,91135.0,91119.0,0.24136084]
[1740467661447,0.20473116,91135.0,91119.0,0.23253248]
[1740467661644,0.20473116,91135.0,91129.0,0.33579898]
[1740467661991,0.20473116,91135.0,91129.0,0.30942725]
[1740467662192,0.20473116,91135.0,91131.0,0.02]
[1740467662392,0.20473116,91135.0,91131.0,0.0192]
[1740467662620,0.00572719,91129.0,91119.0,0.23253248]
[1740467662917,0.00572719,91129.0,91119.0,0.22663248]
[1740467663117,0.00572719,91129.0,91115.0,0.0008488]
[1740467663318,1.0354,91128.0,91115.0,0.00080611]
[1740467663518,1.0354,91128.0,91119.0,4e-05]
[1740467664153,1.0354,91128.0,91123.0,0.35129898]
[1740467664365,1.0354,91128.0,91127.0,0.10709101]
[1740467664571,0.2026,91128.0,91127.0,0.09148204]
[1740467664810,0.00572719,91129.0,91127.0,0.08878204]
[1740467665018,0.00572719,91129.0,91128.0,0.0193]
[1740467665225,0.00572719,91129.0,91128.0,0.0145]
[1740467667279,0.00572719,91129.0,91128.0,0.00742918]
[1740467667679,0.00572719,91129.0,91128.0,0.00170197]
[1740467668215,0.00213116,91135.0,91127.0,0.06439022]
[1740467668531,0.00213116,91135.0,91127.0,0.05210022]
[1740467668943,0.00213116,91135.0,91127.0,0.04501234]
[1740467669153,0.00213116,91135.0,91127.0,0.03691234]
[1740467669369,0.00213116,91135.0,91127.0,0.02231234]
[1740467669497,0.00213116,91135.0,91119.0,4e-05]
[1740467669700,0.2026,91159.0,91119.0,4e-05]
[1740467669939,0.88295977,91158.0,91130.0,0.35115249]
[1740467670149,0.3279,91134.0,91108.0,0.08513712]
[1740467670312,0.3279,91133.0,91108.0,0.07363712]
[1740467670531,0.3279,91133.0,91120.0,0.35115249]
[1740467670697,0.3279,91133.0,91130.0,0.35115249]
[1740467670896,0.3279,91157.0,91130.0,0.35115249]
[1740467671098,0.3279,91157.0,91108.0,0.07363712]
[1740467671099,0.82803567,91156.0,91108.0,0.06258592]
[1740467671297,0.0016976,91135.0,91108.0,0.05568592]
[1740467671579,0.3279,91134.0,91118.0,0.31099449]
[1740467671918,0.3279,91134.0,91131.0,0.34905249]
[1740467672385,1.36213567,91133.0,91090.0,4e-05]
[1740467672560,0.0778,91131.0,91090.0,0.35115249]
[1740467672761,0.0778,91131.0,91090.0,0.34085249]
[1740467672983,0.0778,91131.0,91090.0,0.33301937]
[1740467673271,0.0778,91131.0,91090.0,0.31631937]
[1740467673490,0.0778,91131.0,91090.0,0.30916021]
[1740467673699,1.15593567,91130.0,91100.0,0.35115249]
[1740467673916,1.15593567,91130.0,91103.0,0.08780113]
[1740467674067,0.00012945,91131.0,91123.0,0.08780113]
[1740467674467,0.0585968,91123.0,91115.0,0.08780113]
[1740467674930,0.0585968,91123.0,91115.0,0.06621219]
[1740467675164,0.0585968,91123.0,91115.0,0.05891219]
[1740467675998,0.0585968,91123.0,91091.0,0.04743744]
[1740467676251,0.3279,91122.0,91110.0,0.08780113]
[1740467676412,0.05433311,91121.0,91110.0,0.08278031]
[1740467676623,0.3279,91120.0,91110.0,0.06358031]
[1740467677233,0.05409645,91119.0,91110.0,0.05785079]
[1740467677583,0.3279,91118.0,91099.0,0.08780113]
[1740467677732,0.05474119,91117.0,91081.0,0.038881]
[1740467677932,0.05489045,91115.0,91081.0,0.024581]
[1740467678140,0.0827,91113.0,91081.0,0.021881]
[1740467678340,0.0827,91113.0,91048.0,0.02]
[1740467678341,1.15593567,91112.0,91048.0,0.02]
[1740467678545,0.05461194,91110.0,91007.0,0.0008481]
[1740467678725,1.15593567,91109.0,91050.0,0.01520005]
[1740467678924,0.0488,91100.0,91044.0,0.08780113]
[1740467679127,0.08780113,91091.0,91033.0,0.00852804]
[1740467679349,0.08780113,91091.0,90998.0,0.0008499]
[1740467679350,0.13375987,91000.0,90998.0,0.0008499]
[1740467679595,0.13375987,91000.0,90999.0,0.02]
[1740467679803,0.13375987,91000.0,90999.0,0.08780113]
[1740467680241,0.03857384,90999.0,90998.0,0.0008499]
[1740467680861,0.36647384,90999.0,90998.0,0.0008499]
[1740467681063,0.03857384,90999.0,90998.0,0.0008499]
[1740467681532,0.03857384,90999.0,90998.0,0.0208499]
[1740467682691,0.03857384,90999.0,90998.0,0.0258499]
[1740467682919,0.03857384,90999.0,90998.0,0.0058499]
[1740467683130,0.03857384,90999.0,90998.0,0.0258499]
[1740467684908,0.3279,91108.0,91052.0,0.02]
[1740467685111,0.3279,91117.0,91100.0,0.05843113]
[1740467685321,0.3279,91117.0,91090.0,0.08780113]
[1740467685495,0.0067925,91109.0,91070.0,0.07850113]
[1740467685636,0.0067925,91106.0,91070.0,0.07710113]
[1740467685841,0.0067925,91098.0,91041.0,0.0132075]
[1740467686041,0.3279,91097.0,91054.0,0.08780113]
[1740467686287,0.3279,91097.0,91075.0,0.08780113]
[1740467686458,0.3279,91114.0,91075.0,0.08780113]
[1740467686643,0.0067925,91111.0,91075.0,0.08780113]
[1740467687345,0.00692226,91111.0,91065.0,0.08630113]
[1740467687548,0.0067925,91109.0,91054.0,0.07800113]
[1740467687758,0.0067925,91091.0,91044.0,0.05510113]
[1740467687959,0.0067925,91090.0,91044.0,0.05510113]
[1740467688189,0.02,91085.0,91039.0,0.08780113]
[1740467688388,0.1984,91083.0,91039.0,0.03192636]
[1740467688585,0.02,91070.0,91024.0,0.0064775]
[1740467688810,0.15,91068.0,91024.0,0.0012775]
[1740467689006,0.15,91068.0,91044.0,0.08780113]
[1740467689341,0.15,91068.0,91054.0,0.07800113]
[1740467689636,0.15,91068.0,91055.0,0.08780113]
[1740467689761,0.15012966,91068.0,91055.0,0.02175248]
[1740467689988,0.00012966,91068.0,91044.0,0.03749745]
[1740467690198,0.3279,91067.0,91059.0,0.08780113]
[1740467690404,0.3279,91067.0,91059.0,0.02216549]
[1740467690617,0.3279,91067.0,91024.0,0.0012775]
[1740467690618,0.32802966,91068.0,91036.0,0.08780113]
[1740467690825,0.00012966,91068.0,91067.0,0.08780113]
[1740467691022,0.00012966,91068.0,91067.0,0.03020599]
[1740467691219,0.00012966,91068.0,91067.0,0.08780113]
[1740467691432,0.00012966,91068.0,91067.0,0.07800113]
[1740467692548,0.00012966,91068.0,91067.0,0.02650113]
[1740467693260,0.00012966,91068.0,91058.0,0.5399]
[1740467693377,0.00012966,91068.0,91067.0,0.08780113]
[1740467693577,0.00012966,91068.0,91067.0,0.03219411]
[1740467693777,0.00012966,91068.0,91046.0,0.08493011]
[1740467694006,0.00012966,91068.0,91066.0,0.08780113]
[1740467694180,0.00012966,91068.0,91056.0,0.02256785]
[1740467694418,0.00012966,91068.0,91046.0,0.08493011]
[1740467694619,0.00012966,91068.0,91046.0,0.07553011]
[1740467694820,0.00012966,91068.0,91044.0,0.0008488]
[1740467695416,0.00012966,91068.0,91046.0,0.08130113]
[1740467695612,0.00012966,91068.0,91046.0,0.07230113]
[1740467696036,0.00712966,91068.0,91046.0,0.07230113]
[1740467696273,0.00712966,91068.0,91044.0,0.00952716]
[1740467696404,0.01412966,91068.0,91044.0,0.01052716]
[1740467696829,0.01412966,91068.0,91025.0,0.08780113]
[1740467696830,0.00712966,91068.0,91025.0,0.08780113]
[1740467697089,0.00712966,91068.0,91046.0,0.001]
[1740467697360,0.00012966,91068.0,91036.0,0.08780113]
[1740467697558,0.00712966,91068.0,91014.0,0.04212467]
[1740467697738,0.05429602,91067.0,90999.0,0.08310113]
[1740467697912,0.86344152,91048.0,91009.0,0.08780113]
[1740467698116,0.86344152,91048.0,91010.0,0.0913]
[1740467698336,0.86344152,91048.0,91020.0,0.08780113]
[1740467698755,0.86344152,91048.0,91009.0,0.08780113]
[1740467698970,0.86344152,91048.0,90999.0,0.08310113]
[1740467699161,0.62712834,91048.0,90999.0,0.08310113]
[1740467699362,0.63412834,91048.0,90999.0,0.08310113]
[1740467699558,0.05475174,91047.0,90999.0,0.08310113]
[1740467699764,0.05475174,91047.0,90984.0,0.5399]
[1740467699938,0.05475174,91047.0,90999.0,0.08780113]
[1740467700313,0.05430855,91035.0,90997.0,4e-05]
[1740467700853,0.05478489,91033.0,90997.0,4e-05]
[1740467701049,0.05422188,91023.0,90997.0,4e-05]
[1740467701251,0.05404783,91021.0,90997.0,4e-05]
[1740467701679,0.05488374,91013.0,90998.0,0.00128186]
[1740467701882,0.05491992,91011.0,90998.0,0.00128186]
[1740467702080,0.08780113,91004.0,90998.0,0.00128186]
[1740467702243,0.05477115,91000.0,90998.0,0.00128186]
[1740467702443,0.0455,91001.0,90998.0,0.00128186]
[1740467703248,0.05477115,91000.0,90998.0,0.00128186]
[1740467703452,0.06177115,91000.0,90998.0,0.00128186]
[1740467703696,0.05477115,91000.0,90998.0,0.00128186]
[1740467703868,0.3279,90999.0,90998.0,0.00128186]
[1740467704073,0.3279,91000.0,90998.0,0.00128186]
[1740467704992,0.35165028,90999.0,90998.0,0.00128186]
[1740467705387,0.3279,90999.0,90914.0,0.0911]
[1740467705590,0.3279,91000.0,90935.0,0.35165028]
[1740467705973,0.00043215,90999.0,90935.0,0.35165028]
[1740467706157,0.00043215,90999.0,90945.0,0.35165028]
[1740467706367,0.00043215,90999.0,90955.0,0.35165028]
[1740467706560,0.00043215,90999.0,90968.0,0.35165028]
[1740467706561,0.00743215,90999.0,90968.0,0.35165028]
[1740467706774,0.00043215,90999.0,90989.0,0.35165028]
[1740467706977,0.00043215,90999.0,90968.0,0.35165028]
[1740467707197,0.00043215,90999.0,90955.0,0.35165028]
[1740467707764,0.3279,90998.0,90987.0,0.0879232]
[1740467707967,0.3279,90998.0,90974.0,0.0879232]
[1740467708502,0.3279,90998.0,90984.0,0.0879232]
[1740467708711,0.00043215,90999.0,90994.0,0.0856232]
[1740467708917,0.05538005,90999.0,90963.0,0.0879232]
[1740467709110,0.05538005,90999.0,90914.0,0.002]
[1740467709316,0.06238005,90999.0,90914.0,0.002]
[1740467709539,0.0879232,90995.0,90914.0,0.5399]
[1740467709671,0.0879232,90995.0,90910.0,0.2484078]
[1740467709870,0.0806,90994.0,90910.0,0.2484078]
[1740467710071,0.0806,90994.0,90954.0,0.0879232]
[1740467710279,0.0806,90994.0,90974.0,0.0879232]
[1740467710486,0.05459993,90993.0,90974.0,0.0879232]
[1740467710915,0.00743215,90999.0,90984.0,0.0879232]
[1740467710916,0.05416913,90992.0,90984.0,0.0879232]
[1740467711115,0.05499809,90998.0,90985.0,0.096]
[1740467711317,0.00043215,90999.0,90997.0,0.0879232]
[1740467711527,0.00043215,90999.0,90997.0,0.01461024]
[1740467711753,0.05499809,90998.0,90997.0,0.01461024]
[1740467711971,0.05499809,90998.0,90997.0,0.01131024]
[1740467712535,0.05499809,90998.0,90997.0,0.00191109]
[1740467713689,0.06199809,90998.0,90997.0,0.00191109]
[1740467714254,0.05499809,90998.0,90997.0,0.00191109]
[1740467714659,0.00043215,90999.0,90997.0,0.00191109]
[1740467714864,0.007,90998.0,90997.0,0.00191109]
[1740467715294,0.007,90998.0,90997.0,0.54181109]
[1740467715525,0.007,90998.0,90997.0,0.51171109]
[1740467715733,0.007,90998.0,90997.0,0.83521109]
[1740467716301,0.00043215,90999.0,90998.0,0.0945]
[1740467716511,0.00043215,90999.0,90998.0,0.68517233]
[1740467716708,0.00743215,90999.0,90998.0,0.68363429]
[1740467717114,0.00043215,90999.0,90998.0,0.68363429]
[1740467717514,0.00043215,90999.0,90998.0,0.1649232]
[1740467717718,0.00043215,90999.0,90998.0,0.16646109]
[1740467717967,0.00743215,90999.0,90998.0,0.1659232]
[1740467718183,0.00743215,90999.0,90998.0,0.16646129]
[1740467718522,0.00743215,90999.0,90998.0,1.00167238]
[1740467718720,0.00743215,90999.0,90998.0,1.00013429]
[1740467719244,0.05483754,91036.0,90998.0,0.92398349]
[1740467719446,0.85968468,91065.0,91040.0,0.34520535]
[1740467719657,0.85968468,91065.0,91064.0,0.32927301]
[1740467720220,0.0009513,91072.0,91064.0,0.12927301]
[1740467720459,0.0009513,91072.0,91065.0,0.51324842]
[1740467720666,0.0009513,91072.0,91065.0,0.51171109]
[1740467720861,0.0009513,91072.0,91065.0,0.5428]
[1740467721065,0.0009513,91072.0,91066.0,0.00153678]
[1740467721306,0.0009513,91072.0,91067.0,0.5428]
[1740467721494,0.0009513,91072.0,91068.0,0.53833657]
[1740467721699,0.0009513,91072.0,91067.0,0.53833657]
[1740467721922,0.0009513,91072.0,91068.0,0.53670446]
[1740467722126,0.0009513,91072.0,91064.0,0.04252099]
[1740467722127,0.0009513,91072.0,91069.0,0.52940446]
[1740467722520,0.0009513,91072.0,91070.0,0.0985]
[1740467722978,0.0009513,91072.0,91070.0,0.62570446]
[1740467723180,0.0009513,91072.0,91065.0,0.001]
[1740467723308,0.0009513,91072.0,91064.0,0.04252099]
[1740467723507,0.0009513,91072.0,91064.0,0.03782099]
[1740467723710,0.0009513,91072.0,91070.0,0.001]
[1740467723911,0.0009513,91072.0,91064.0,0.03782099]
[1740467724119,0.0009513,91072.0,91064.0,0.03362099]
[1740467724463,0.0009513,91072.0,91065.0,0.001]
[1740467724665,0.0009513,91072.0,91064.0,0.03362099]
[1740467725214,0.0009513,91072.0,91031.0,0.24816]
[1740467725432,0.0009513,91072.0,91053.0,0.35157301]
[1740467725839,0.0029513,91072.0,91070.0,0.001]
[1740467726035,0.0029513,91072.0,91053.0,0.35157301]
[1740467726440,0.0049513,91072.0,91063.0,0.35157301]
[1740467726638,0.0029513,91072.0,91063.0,0.35157301]
[1740467726856,0.0009513,91072.0,91063.0,0.35157301]
[1740467727065,0.0029513,91072.0,91070.0,0.001]
[1740467727333,0.0029513,91072.0,91031.0,0.24816]
[1740467727334,0.43357301,91071.0,90999.0,0.52940446]
[1740467727487,0.35157301,91055.0,90998.0,0.0008492]
[1740467727650,0.32982271,91054.0,90998.0,0.0008492]
[1740467727852,0.0019228,91053.0,90998.0,0.0008492]
[1740467728063,0.00192276,91053.0,90998.0,0.0008492]
[1740467728432,0.13272223,91071.0,90998.0,0.0008492]
[1740467728577,0.13272244,91071.0,90998.0,0.0008492]
[1740467728778,0.2,91000.0,90998.0,0.0008492]
[1740467729404,0.19993,91000.0,90998.0,0.0008492]
[1740467729806,0.20693,91000.0,90998.0,0.0008492]
[1740467730151,0.20693,91000.0,90999.0,0.18351305]
[1740467730152,0.19993,91000.0,90999.0,0.18351305]
[1740467730442,0.20693,91000.0,90999.0,0.18351305]
[1740467730873,0.19993,91000.0,90999.0,0.12756907]
[1740467731283,0.2016284,91000.0,90999.0,0.07198058]
[1740467731607,0.2016284,91000.0,90999.0,0.01640733]
[1740467731780,0.2016284,91000.0,90999.0,0.01068019]
[1740467731986,0.2016284,91000.0,90999.0,0.00958019]
[1740467732143,0.0468,90999.0,90907.0,0.54325426]
[1740467732348,0.0764,90997.0,90927.0,0.24866]
[1740467732547,0.00192403,90996.0,90927.0,0.24866]
[1740467732951,0.00192403,90996.0,90954.0,0.08791305]
[1740467733274,0.00192403,90996.0,90974.0,0.08791305]
[1740467733472,0.0764,90997.0,90986.0,0.08791305]
[1740467733672,0.07832336,90997.0,90974.0,0.08791305]
[1740467734071,0.007,90996.0,90984.0,0.08791305]
[1740467734256,0.007,90996.0,90994.0,0.08791305]
[1740467734671,0.007,90996.0,90974.0,0.08791305]
[1740467734925,0.00192342,90995.0,90974.0,0.08791305]
[1740467735216,0.00192342,90995.0,90978.0,0.00110215]
[1740467735478,0.0487,90998.0,90978.0,0.00110215]
[1740467735672,0.0776,90996.0,90978.0,0.00110215]
[1740467735845,0.001924,90995.0,90978.0,0.00110215]
[1740467736048,0.008924,90995.0,90978.0,0.00110215]
[1740467736449,0.001924,90995.0,90978.0,0.00110215]
[1740467736784,0.05434315,90994.0,90978.0,0.00114215]
[1740467736990,0.00192376,90993.0,90978.0,0.00114215]
[1740467737232,0.02,90988.0,90978.0,0.00114215]
[1740467737410,0.00192384,90987.0,90978.0,0.00114215]
[1740467737559,0.3279,90986.0,90978.0,0.00114215]
[1740467737787,0.00192386,90985.0,90978.0,0.00114215]
[1740467738182,0.05408502,90984.0,90978.0,0.00114215]
[1740467738542,0.05415512,90985.0,90978.0,0.00114215]
[1740467739629,0.007,90984.0,90978.0,0.00114215]
[1740467739854,0.3279,90986.0,90978.0,0.00114215]
[1740467740055,0.05480343,90995.0,90978.0,0.00114215]
[1740467740359,0.1458319,91000.0,90978.0,0.00114215]
[1740467740566,0.1458319,91000.0,90980.0,0.0955]
[1740467741766,0.007,90985.0,90980.0,0.0955]
[1740467741920,0.1458319,91000.0,90980.0,0.0955]
[1740467742322,0.1528319,91000.0,90980.0,0.0955]
[1740467742527,0.1458319,91000.0,90980.0,0.0955]
[1740467742927,0.007,90985.0,90980.0,0.0955]
[1740467743152,0.1458319,91000.0,90980.0,0.0955]
[1740467743553,0.1528319,91000.0,90980.0,0.0955]
[1740467744740,0.1528319,91000.0,90978.0,0.00199145]
[1740467744940,0.02,90988.0,90978.0,0.00199145]
[1740467745219,0.02,90991.0,90978.0,0.00199145]
[1740467745528,0.1458319,91000.0,90978.0,0.00199145]
[1740467745713,0.007,90985.0,90984.0,0.08791305]
[1740467745919,0.1458319,91000.0,90984.0,0.08791305]
[1740467746120,0.1458319,91000.0,90978.0,0.00199145]
[1740467746321,0.007,90988.0,90978.0,0.00199145]
[1740467746472,0.1458319,91000.0,90978.0,0.00199145]
[1740467746676,0.1458319,91000.0,90984.0,0.08791305]
[1740467746924,0.1458319,91000.0,90978.0,0.00199145]
[1740467747129,0.007,90985.0,90978.0,0.00199145]
[1740467747272,0.0238,90984.0,90978.0,0.00199145]
[1740467747470,0.1458319,91000.0,90979.0,0.00153867]
[1740467747692,0.02376,90999.0,90988.0,0.08791305]
[1740467748307,0.1458319,91000.0,90998.0,0.08791305]
[1740467748568,0.02368,90999.0,90998.0,0.08791305]
[1740467748676,0.1528319,91000.0,90999.0,0.0988]
[1740467748881,0.1528319,91000.0,90999.0,0.10003815]
[1740467748882,0.1694719,91000.0,90999.0,0.10003815]
[1740467749082,0.1694719,91000.0,90999.0,0.0985]
[1740467749532,0.1694719,91000.0,90999.0,0.08491912]
[1740467749944,0.1764719,91000.0,90999.0,0.08491912]
[1740467750307,0.1694719,91000.0,90998.0,0.03974677]
[1740467750699,0.1694719,91000.0,90988.0,0.08791305]
[1740467750700,0.1764719,91000.0,90988.0,0.0803388]
[1740467750874,0.1764719,91000.0,90978.0,0.00199145]
[1740467751314,0.1764719,91000.0,90984.0,0.08791305]
[1740467751517,0.1764719,91000.0,90995.0,0.08791305]
[1740467751718,0.1764719,91000.0,90995.0,0.0811644]
[1740467751918,0.1694719,91000.0,90995.0,0.0803644]
[1740467752334,0.1764719,91000.0,90984.0,0.08791305]
[1740467752539,0.1694719,91000.0,90984.0,0.08791305]
[1740467752757,0.1694719,91000.0,90984.0,0.07601521]
[1740467752957,0.1764719,91000.0,90984.0,0.07587694]
[1740467753159,0.1694719,91000.0,90995.0,0.08791305]
[1740467753534,0.1764719,91000.0,90995.0,0.08791305]
[1740467753735,0.1694719,91000.0,90995.0,0.08082956]
[1740467753891,0.1694719,91000.0,90984.0,0.07741539]
[1740467754239,0.1458319,91000.0,90999.0,0.08791305]
[1740467754692,0.1689919,91000.0,90999.0,0.08791305]
[1740467755091,0.1759919,91000.0,90999.0,0.08791305]
[1740467755298,0.1689919,91000.0,90999.0,0.08791305]
[1740467755501,0.1458319,91000.0,90999.0,0.08791305]
[1740467755718,0.1759119,91000.0,90999.0,0.08791305]
[1740467755907,0.1689119,91000.0,90999.0,0.08791305]
[1740467756335,0.1759119,91000.0,90999.0,0.08791305]
[1740467756493,0.1689119,91000.0,90999.0,0.08791305]
[1740467756899,0.1759119,91000.0,90999.0,0.08791305]
[1740467758275,0.1689119,91000.0,90999.0,0.08791305]
[1740467758479,0.1759119,91000.0,90999.0,0.08611305]
[1740467758886,0.1689119,91000.0,90999.0,0.08611305]
[1740467759039,0.1759119,91000.0,90999.0,0.08611305]
[1740467759247,0.1689119,91000.0,90999.0,0.08611305]
[1740467759680,0.1759119,91000.0,90999.0,0.08611305]
[1740467760273,0.1528319,91000.0,90999.0,0.07711305]
[1740467760443,0.1267319,91000.0,90999.0,0.07711305]
[1740467760660,0.1267319,91000.0,90999.0,0.93501751]
[1740467760661,0.0490919,91000.0,90999.0,0.93501751]
[1740467761322,0.0195319,91000.0,90999.0,0.93501751]
[1740467761526,0.71442777,91059.0,91018.0,0.089]
[1740467761662,0.02248,91058.0,91057.0,0.08791305]
[1740467761876,0.02248,91058.0,91057.0,0.08944993]
[1740467762522,0.02248,91058.0,91057.0,0.08791305]
[1740467762766,0.02252324,91058.0,91057.0,0.08791305]
[1740467763280,0.02252324,91058.0,91057.0,0.08944986]
[1740467764313,4.324e-05,91058.0,91057.0,0.41294986]
[1740467764531,0.02228324,91058.0,91057.0,0.40757695]
[1740467764764,0.02228324,91058.0,91057.0,0.30921828]
[1740467765019,0.02224,91058.0,91057.0,0.83862274]
[1740467765218,0.0016984,91090.0,91071.0,0.3514263]
[1740467765423,0.0016984,91090.0,91071.0,1.19004904]
[1740467766184,0.02296,91072.0,91071.0,1.19004904]
[1740467766972,0.00088,91072.0,91071.0,1.19004904]
[1740467767178,0.02288,91072.0,91071.0,1.19004904]
[1740467768039,0.0016984,91090.0,91089.0,0.3514263]
[1740467768270,0.00213052,91090.0,91089.0,1.19004904]
[1740467769235,0.05438072,91148.0,91090.0,0.0965]
[1740467769440,0.00182626,91133.0,91132.0,0.34532401]
[1740467769602,0.02362626,91133.0,91132.0,0.87472847]
[1740467771340,0.02362626,91133.0,91132.0,0.52940446]
[1740467771558,0.02362626,91133.0,91113.0,0.0965]
[1740467771902,0.02362626,91133.0,91114.0,0.00153546]
[1740467772110,0.02362626,91133.0,91122.0,0.3514263]
[1740467772295,0.02362626,91133.0,91132.0,0.3514263]
[1740467772697,0.0235314,91133.0,91132.0,0.3514263]
[1740467772876,0.0017314,91133.0,91132.0,0.3514263]
[1740467773242,0.0242114,91133.0,91132.0,0.3514263]
[1740467773776,0.0242114,91133.0,91132.0,1.19004904]
[1740467774649,0.0242114,91133.0,91132.0,0.3514263]
[1740467775923,0.0017314,91133.0,91132.0,1.19004904]
[1740467776122,0.0240514,91133.0,91132.0,1.19004904]
[1740467777706,0.0240514,91133.0,91132.0,0.30677241]
[1740467778366,0.0240514,91133.0,91123.0,0.52940446]
[1740467778563,0.0240514,91133.0,91124.0,0.00153558]
[1740467778840,0.0240514,91133.0,91132.0,0.3514263]
[1740467780333,0.0240514,91133.0,91123.0,0.52940446]
[1740467780648,0.0240514,91133.0,91124.0,0.00153548]
[1740467780928,0.0240514,91133.0,91132.0,0.3514263]
[1740467781266,0.0240114,91133.0,91132.0,0.88083076]
[1740467782601,0.0017314,91133.0,91132.0,1.19004904]
[1740467782776,0.0238514,91133.0,91132.0,1.19004904]
[1740467783179,0.0016984,91164.0,91132.0,1.19004904]
[1740467783544,0.02208,91134.0,91133.0,0.5309394]
[1740467783821,0.0016984,91164.0,91149.0,0.3514263]
[1740467784178,0.0016984,91164.0,91149.0,2.05118028]
[1740467785155,0.00182794,91164.0,91163.0,0.3514263]
[1740467785736,0.00182794,91164.0,91163.0,1.18963599]
[1740467785912,0.0016968,91165.0,91163.0,2.05473599]
[1740467785913,0.00017055,91165.0,91163.0,2.05473599]
[1740467786076,0.00017055,91165.0,91164.0,0.00153377]
[1740467786276,0.02213055,91165.0,91164.0,0.00153338]
[1740467786517,0.0016976,91212.0,91182.0,0.3514263]
[1740467786722,0.0016976,91212.0,91182.0,2.05473599]
[1740467787554,0.0016976,91212.0,91182.0,1.18963599]
[1740467787969,0.0235798,91183.0,91182.0,1.18963599]
[1740467789282,0.0235798,91183.0,91182.0,0.83820969]
[1740467790908,0.0235798,91183.0,91164.0,0.52899141]
[1740467791071,0.0240115,91183.0,91165.0,0.00153461]
[1740467791256,0.0240115,91183.0,91153.0,0.53052617]
[1740467791585,0.0240115,91183.0,91153.0,0.52899141]
[1740467791965,0.00071508,91191.0,91153.0,0.52899141]
[1740467792182,0.00071508,91191.0,91154.0,0.83820969]
[1740467792368,0.00071508,91191.0,91155.0,0.00153468]
[1740467792580,0.0824,91190.0,91155.0,0.00153468]
[1740467793066,0.0473,91189.0,91155.0,0.00153468]
[1740467793281,0.0673,91189.0,91155.0,0.00153468]
[1740467793490,0.02,91180.0,91155.0,0.00153468]
[1740467793678,0.02164,91188.0,91155.0,0.00153468]
[1740467793862,0.02164,91188.0,91154.0,0.00153489]
[1740467794070,0.0273,91189.0,91154.0,0.00153489]
[1740467794424,0.0273,91189.0,91155.0,0.52899141]
[1740467794624,0.0273,91189.0,91156.0,0.00153476]
[1740467794841,0.0273,91189.0,91155.0,0.52899141]
[1740467794842,0.0273,91189.0,91157.0,0.00153476]
[1740467795043,0.02,91182.0,91153.0,0.0004317]
[1740467795246,0.02,91180.0,91154.0,0.00153502]
[1740467795466,0.02,91170.0,91154.0,0.00153502]
[1740467795671,0.0819,91168.0,91134.0,0.48279983]
[1740467795910,0.0819,91168.0,91135.0,0.00076474]
[1740467796267,0.0819,91168.0,91135.0,0.00076462]
[1740467796769,0.02,91222.0,91135.0,0.00076462]
[1740467796976,0.3279,91226.0,91135.0,0.00076462]
[1740467796977,0.0466,91209.0,91135.0,0.00076462]
[1740467797175,0.0542294,91206.0,91135.0,0.00076462]
[1740467797371,0.0457,91205.0,91135.0,0.00076462]
[1740467797569,0.05438102,91204.0,91135.0,0.00076462]
[1740467797809,0.0457,91203.0,91135.0,0.00076462]
[1740467797975,0.05428684,91202.0,91135.0,0.00076462]
[1740467798152,0.05403435,91200.0,91135.0,0.00076462]
[1740467798353,0.0457,91201.0,91135.0,0.00076462]
[1740467798618,0.05489723,91198.0,91135.0,0.00076462]
[1740467798801,0.05444355,91199.0,91135.0,0.00076462]
[1740467799001,0.0540292,91196.0,91135.0,0.00076438]
[1740467799202,0.3736,91195.0,91135.0,0.00076438]
[1740467799408,0.0483,91194.0,91135.0,0.00076438]
[1740467799583,0.3279,91195.0,91104.0,0.02]
[1740467799584,0.0483,91192.0,91104.0,0.02]
[1740467799788,0.3279,91195.0,91103.0,0.50279983]
[1740467799789,0.05445509,91190.0,91103.0,0.02]
[1740467799985,0.0545231,91187.0,91104.0,0.02]
[1740467800183,0.1273,91186.0,91104.0,0.02]
[1740467800400,0.1273,91186.0,91103.0,0.02]
[1740467800401,0.0483,91183.0,91103.0,0.04]
[1740467800631,0.0483,91183.0,91116.0,0.08774672]
[1740467800842,0.05461049,91182.0,91126.0,0.08774672]
[1740467801220,0.05461049,91182.0,91117.0,0.48279983]
[1740467801553,0.05461049,91182.0,91126.0,0.08774672]
[1740467801681,0.05461049,91182.0,91126.0,0.07744672]
[1740467801682,0.02124,91181.0,91126.0,0.07744672]
[1740467801886,0.02124,91181.0,91139.0,0.07713696]
[1740467801887,0.05477659,91180.0,91139.0,0.07713696]
[1740467802739,0.05477659,91180.0,91155.0,0.08774672]
[1740467802944,0.0483,91183.0,91165.0,0.08774672]
[1740467803139,0.0544405,91178.0,91165.0,0.08663707]
[1740467803391,0.0544405,91178.0,91145.0,0.48279983]
[1740467803769,0.10291803,91183.0,91159.0,0.08774672]
[1740467803944,0.05448046,91181.0,91159.0,0.08774672]
[1740467804155,0.05448046,91181.0,91155.0,0.08774672]
[1740467804386,0.07597544,91182.0,91155.0,0.08774672]
[1740467804584,0.0008475,91183.0,91176.0,0.08774672]
[1740467804785,0.021,91181.0,91177.0,0.02]
[1740467805029,0.021,91181.0,91180.0,0.0178]
[1740467805236,0.021,91181.0,91180.0,0.49609327]
[1740467805786,0.07584552,91181.0,91180.0,0.49609327]
[1740467806537,0.05573536,91183.0,91182.0,0.0178]